fUST/lending_fUST_20250610
["ID","MTS","AMOUNT","RATE_DAILY","PERIOD"]
[365191578,1749526241731,-8932.16669493,0.00023651,2]
[365191579,1749526241740,-151.0,0.00023651,7]
[365191580,1749526241750,-151.0,0.00023651,7]
[365191581,1749526241759,-151.0,0.00023651,7]
[365191582,1749526241768,-281.957577,0.00023651,7]
[365191583,1749526241778,-281.957577,0.00023651,7]
[365191584,1749526241788,-151.0,0.00023651,7]
[365191585,1749526241799,-17864.33338987,0.00023652,2]
[365191586,1749526241808,-8932.16669493,0.00023664,2]
[365191587,1749526241819,-800.0,0.00023668,2]
[365191588,1749526241828,-8932.16669493,0.00023671,2]
[365191589,1749526241838,-17864.33338987,0.00023673,2]
[365191590,1749526241848,-152.066075,0.00023673,7]
[365191591,1749526241858,-151.563386,0.00023673,7]
[365191592,1749526241867,-151.0,0.00023673,7]
[365191593,1749526241876,-151.0,0.00023673,2]
[365191594,1749526241886,-1718.0,0.00023684,7]
[365191595,1749526241895,-8932.16669493,0.00023686,2]
[365191596,1749526241904,-1188.05735491,0.00023693,9]
[365191597,1749526241914,-2211.6,0.000237,7]
[365191598,1749526241927,-1562.26219229,0.000237,2]
[365191599,1749526241937,-1006.00665359,0.000237,2]
[365191600,1749526241948,-160.0,0.000237,4]
[365191601,1749526241957,-299.27088237,0.000237,5]
[365191602,1749526241967,-371.1330319,0.00023726,2]
[365191603,1749526241977,-501.13731137,0.00023773,2]
[365191604,1749526241988,-500.53175671,0.00023773,2]
[365191605,1749526242001,-500.0,0.00023773,2]
[365191606,1749526242010,-252.34158606,0.00023773,2]
[365191607,1749526242020,-501.75429769,0.00023773,2]
[365191608,1749526242029,-500.0,0.00023773,2]
[365191609,1749526242039,-500.0,0.00023773,2]
[365191610,1749526242048,-500.0,0.00023773,2]
[365191611,1749526242058,-500.0,0.00023773,2]
[365191612,1749526242067,-501.73062628,0.00023773,2]
[365191613,1749526242077,-500.0,0.00023773,2]
[365191614,1749526242087,-500.0,0.00023773,2]
[365191615,1749526242097,-151.0,0.00023773,7]
[365191616,1749526242106,-165.306291,0.00023773,7]
[365191617,1749526242116,-151.0,0.00023773,7]
[365191618,1749526242125,-151.0,0.00023773,7]
[365191619,1749526242134,-151.0,0.00023773,7]
[365191620,1749526242144,-261.256242,0.00023773,7]
[365191621,1749526242153,-12492.39244627,0.0002378,5]
[365191622,1749526242162,-165.542756,0.0002378,7]
[365191623,1749526242171,-500.0,0.0002378,9]
[365191624,1749526242181,-250.53944303,0.00023784,2]
[365191625,1749526242190,-487.99792373,0.00023785,2]
[365191626,1749526242200,-200.0,0.00023798,2]
[365191627,1749526242209,-156.401228,0.00023799,7]
[365191628,1749526242219,-153.344201,0.00023799,7]
[365191629,1749526242228,-158.456518,0.00023799,7]
[365191630,1749526242238,-151.589819,0.00023799,7]
[365191631,1749526242247,-158.362726,0.00023799,7]
[365191632,1749526242257,-155.160346,0.00023799,7]
[365191633,1749526242268,-151.0,0.00023799,7]
[365191634,1749526242277,-151.0,0.00023799,7]
[365191635,1749526242287,-283.580109,0.00023799,7]
[365191636,1749526242297,-216538.54180541,0.000238,3]
[365191641,1749526243462,-364.15739841,0.00021095,4]
[365191642,1749526243472,-460.0,0.00021416,4]
[365191643,1749526243482,-1911.70783097,0.0002194,6]
[365191688,1749526246682,-397.45586291,0.00021416,4]
[365191690,1749526246692,-3088.29216903,0.0002194,6]
[365191692,1749526246701,-229.6792923,0.00022161,2]
[365191694,1749526246711,-500.0,0.00022191,4]
[365191696,1749526246721,-8558.23345178,0.000238,3]
[365191714,1749526246883,-55234.2964511,0.000238,3]
[365191716,1749526246893,-56546.0,0.000238,3]
[365191718,1749526246903,-198.0,0.000238,7]
[365191720,1749526246912,-198.0,0.000238,7]
[365191722,1749526246926,-198.0,0.000238,8]
[365191724,1749526246935,-198.0,0.000238,8]
[365191726,1749526246945,-2195.52333718,0.000238,7]
[365193776,1749526370240,-603.0,0.00020072,2]
[365193779,1749526690138,-5000.0,0.00019876,2]
[365193780,1749526690160,-544.27406,0.00020068,2]
[365193781,1749526690180,-22366.4158942,0.00020068,2]
[365193782,1749526696018,0.3100458,0.00020068,2]
[365193783,1749526727401,182.2343527,0.00013699,2]
[365193786,1749526770719,-4999.6899542,0.00020068,2]
[365193787,1749526770743,-661.95,0.00020077,2]
[365193788,1749526770764,-500.0,0.00020547,2]
[365193789,1749526770787,-1323.89,0.00021033,2]
[365193790,1749526770808,-586.0,0.00021093,2]
[365193791,1749526770834,-300.0,0.00021093,2]
[365193792,1749526770856,-300.0,0.00021094,2]
[365193793,1749526770877,-300.0,0.00021094,2]
[365193794,1749526770899,-300.0,0.00021094,2]
[365193795,1749526770919,-470.76355931,0.00021095,4]
[365193796,1749526770941,-449.1575036,0.00021095,4]
[365193797,1749526770961,-291.70460531,0.00021095,4]
[365193798,1749526770981,-431.57569702,0.00021095,4]
[365193799,1749526771001,-450.67503554,0.00021095,4]
[365193800,1749526771169,-381.12505562,0.00021095,4]
[365193801,1749526771191,-337.22543755,0.00021095,4]
[365193802,1749526771211,-460.0,0.00021095,4]
[365193803,1749526771233,-430.0,0.00021095,4]
[365193804,1749526771253,-420.0,0.00021095,4]
[365193805,1749526771275,-460.0,0.00021095,4]
[365193806,1749526771298,-460.0,0.00021095,4]
[365193807,1749526771318,-460.0,0.00021095,4]
[365193808,1749526771341,-468.11488721,0.00021095,4]
[365193809,1749526771363,-460.0,0.00021095,4]
[365193810,1749526771385,-430.12826464,0.00021095,4]
[365193827,1749526977839,-4999.0,0.00019871,2]
[365193830,1749527045076,-1.0,0.00019871,2]
[365193831,1749527045101,-300.0,0.00019879,2]
[365193832,1749527045123,-24837.0,0.0001988,2]
[365193852,1749527236167,1006.00665458,0.00024689,60]
[365193855,1749527256654,-5000.0,0.0001851,2]
[365193856,1749527256675,-100.0,0.00018697,2]
[365193863,1749527325996,-221.62435964,0.00018497,2]
[365193864,1749527326018,-4938.37564036,0.0001851,2]
[365193868,1749527426114,-170.48037239,0.00018044,2]
[365193869,1749527426136,-61.62435964,0.0001851,2]
[365193870,1749527426156,-70.82676119,0.00018697,2]
[365193871,1749527426176,-555.54957021,0.00018994,2]
[365193872,1749527426197,-165.0925819,0.00019693,2]
[365193873,1749527426217,-165.0925819,0.0001978,2]
[365193874,1749527426238,-1200.0,0.00019792,2]
[365193875,1749527426258,-11683.2072671,0.00019793,2]
[365193876,1749527426280,-63.0,0.0001988,2]
[365193877,1749527426309,-1263.2437146,0.0002,2]
[365193878,1749527426336,-1263.24371435,0.00020072,2]
[365193879,1749527426359,-674.13,0.00020077,2]
[365193880,1749527426386,-1263.24371435,0.00020245,2]
[365193881,1749527426406,-160.0,0.00020321,2]
[365193882,1749527426427,-300.0,0.00020322,2]
[365193883,1749527426447,-3375.1673833,0.00020323,2]
[365193884,1749527426474,-1263.24371435,0.00020417,3]
[365193885,1749527426501,-1263.24371435,0.0002059,3]
[365193886,1749527426527,-1263.24371435,0.00020762,3]
[365193887,1749527426547,-207.4,0.00020829,2]
[365193888,1749527426573,-1263.24371435,0.00020934,4]
[365193889,1749527430741,221.62435964,0.00019593,2]
[365193936,1749527432491,-1348.26,0.00021033,2]
[365193938,1749527432502,-420.0,0.00021095,4]
[365193940,1749527432511,-221.07240354,0.00021095,4]
[365193942,1749527432521,-460.0,0.00021095,4]
[365193944,1749527432531,-460.0,0.00021095,4]
[365193946,1749527432540,-460.0,0.00021095,4]
[365193948,1749527432549,-346.01548637,0.00021095,4]
[365193950,1749527432559,-64.04039551,0.00021095,4]
[365194107,1749527437794,5000.0,0.00021,2]
[365194117,1749527438470,-395.95960449,0.00021095,4]
[365194118,1749527438481,-160.10866143,0.00021095,4]
[365194463,1749527443650,-31.16336818,0.00021095,4]
[365194465,1749527443660,-500.0,0.00021095,4]
[365194467,1749527443670,-340.0,0.00021095,4]
[365194469,1749527443679,-350.0,0.00021095,4]
[365194471,1749527443688,-460.0,0.00021095,4]
[365194473,1749527443698,-460.0,0.00021095,4]
[365194475,1749527443707,-436.65619195,0.00021095,4]
[365194477,1749527443717,-460.14310479,0.00021095,4]
[365194479,1749527443726,-460.0,0.00021095,4]
[365194481,1749527443735,-460.0,0.00021095,4]
[365194482,1749527443745,-460.0,0.00021095,4]
[365194484,1749527443755,-410.0,0.00021095,4]
[365194486,1749527443766,-412.57,0.00021095,4]
[365194488,1749527443775,-318.29269613,0.00021095,4]
[365194638,1749527446547,-141.70730387,0.00021095,4]
[365194639,1749527446557,-396.83934309,0.00021095,4]
[365194640,1749527446567,-460.0,0.00021095,4]
[365194641,1749527446577,-184.36756907,0.00021095,4]
[365194643,1749527446587,-486.86981558,0.00021095,4]
[365194645,1749527446597,-188.2807873,0.00021095,4]
[365194646,1749527446606,-391.30104741,0.00021095,4]
[365194647,1749527446616,-460.0,0.00021095,4]
[365194648,1749527446626,-460.0,0.00021095,4]
[365194649,1749527446636,-460.0,0.00021095,4]
[365194651,1749527446646,-486.68,0.00021095,4]
[365194653,1749527446655,-159.60332474,0.00021095,4]
[365194655,1749527446665,-460.0,0.00021095,4]
[365194656,1749527446675,-297.33090006,0.00021095,4]
[365194657,1749527446685,-460.0,0.00021095,4]
[365194658,1749527446695,-460.0,0.00021095,4]
[365194659,1749527446704,-460.0,0.00021095,4]
[365194660,1749527446714,-460.0,0.00021095,4]
[365194661,1749527446724,-460.0,0.00021095,4]
[365194662,1749527446734,-460.0,0.00021095,4]
[365194663,1749527446744,-460.0,0.00021095,4]
[365194664,1749527446753,-460.0,0.00021095,4]
[365194665,1749527446763,-426.7427292,0.00021095,4]
[365194666,1749527446773,-403.6123643,0.00021095,4]
[365194667,1749527446782,-460.0,0.00021095,4]
[365194668,1749527446792,-460.0,0.00021095,4]
[365194669,1749527446802,-460.0,0.00021095,4]
[365194670,1749527446812,-460.0,0.00021095,4]
[365194671,1749527446821,-460.0,0.00021095,4]
[365194672,1749527446831,-460.0,0.00021095,4]
[365194673,1749527446841,-460.0,0.00021095,4]
[365194674,1749527446851,-460.0,0.00021095,2]
[365194675,1749527446861,-460.0,0.00021095,4]
[365194676,1749527446870,-270.0,0.00021095,4]
[365194677,1749527446880,-933.34,0.00021095,4]
[365194678,1749527446891,-420.0,0.00021095,4]
[365194679,1749527446900,-460.0,0.00021095,4]
[365194680,1749527446910,-1179.61,0.00021095,4]
[365194681,1749527446919,-309.87561211,0.00021095,4]
[365194682,1749527446929,-460.0,0.00021095,4]
[365194683,1749527446939,-903.49,0.00021095,4]
[365194684,1749527446949,-460.0,0.00021095,4]
[365194685,1749527446958,-460.0,0.00021095,4]
[365194686,1749527446969,-434.69094118,0.00021095,4]
[365194687,1749527446979,-460.0,0.00021095,4]
[365194688,1749527446989,-460.0,0.00021095,4]
[365194689,1749527446998,-283.55639312,0.00021095,4]
[365194690,1749527447008,-4998.55,0.00021095,4]
[365194691,1749527447018,-460.0,0.00021095,4]
[365194692,1749527447027,-445.29937781,0.00021095,4]
[365194693,1749527447038,-818.9,0.00021095,4]
[365194694,1749527447047,-460.0,0.00021095,4]
[365194695,1749527447057,-448.51732202,0.00021095,4]
[365194696,1749527447066,-1062.5,0.00021095,4]
[365194697,1749527447077,-436.32163317,0.00021095,4]
[365194698,1749527447087,-460.0,0.00021095,4]
[365194699,1749527447097,-460.0,0.00021095,4]
[365194700,1749527447106,-440.0,0.00021095,4]
[365194701,1749527447118,-460.0,0.00021095,4]
[365194702,1749527447127,-460.0,0.00021095,4]
[365194703,1749527447137,-470.58569877,0.00021095,4]
[365194704,1749527447147,-460.0,0.00021095,4]
[365194705,1749527447157,-460.0,0.00021095,4]
[365194706,1749527447167,-460.0,0.00021095,4]
[365194707,1749527447176,-460.0,0.00021095,4]
[365194708,1749527447186,-431.16221496,0.00021095,4]
[365194709,1749527447196,-879.02,0.00021095,4]
[365194710,1749527447206,-1016.63,0.00021095,4]
[365194711,1749527447216,-264.90451865,0.00021095,4]
[365194712,1749527447225,-440.65243099,0.00021095,4]
[365194713,1749527447235,-460.0,0.00021095,4]
[365194714,1749527447245,-931.26,0.00021095,4]
[365194715,1749527447254,-460.0,0.00021095,4]
[365194716,1749527447264,-460.0,0.00021095,4]
[365194717,1749527447273,-460.0,0.00021095,4]
[365194718,1749527447283,-460.0,0.00021095,4]
[365194719,1749527447293,-420.0,0.00021095,4]
[365194720,1749527447307,-460.0,0.00021095,4]
[365194721,1749527447316,-460.0,0.00021095,4]
[365194722,1749527447326,-460.0,0.00021095,4]
[365194723,1749527447335,-460.0,0.00021095,4]
[365194724,1749527447345,-460.0,0.00021095,4]
[365194725,1749527447355,-460.0,0.00021095,4]
[365194726,1749527447364,-460.0,0.00021095,4]
[365194727,1749527447374,-509.97905134,0.00021095,4]
[365194728,1749527447384,-460.0,0.00021369,4]
[365194729,1749527447394,-460.0,0.00021369,4]
[365194730,1749527447403,-401.07336417,0.00021369,4]
[365194731,1749527447413,-475.81329429,0.00021369,4]
[365194732,1749527447422,-460.0,0.00021369,4]
[365194733,1749527447431,-460.0,0.00021369,4]
[365194734,1749527447441,-460.0,0.00021369,4]
[365194735,1749527447450,-476.23999682,0.00021369,4]
[365194736,1749527447460,-460.0,0.00021369,4]
[365194737,1749527447469,-486.68,0.00021369,4]
[365194738,1749527447479,-460.0,0.00021369,4]
[365194739,1749527447488,-460.0,0.00021369,4]
[365194740,1749527447498,-460.0,0.00021369,4]
[365194741,1749527447507,-460.0,0.00021369,4]
[365194742,1749527447516,-440.0,0.00021369,4]
[365194743,1749527447526,-460.0,0.00021369,4]
[365194744,1749527447536,-460.0,0.00021369,4]
[365194745,1749527447545,-460.0,0.00021369,4]
[365194746,1749527447556,-460.0,0.00021369,4]
[365194747,1749527447565,-460.0,0.00021369,4]
[365194748,1749527447574,-460.0,0.00021369,4]
[365194749,1749527447583,-460.0,0.00021369,4]
[365194750,1749527447592,-460.0,0.00021369,4]
[365194751,1749527447602,-460.0,0.00021369,4]
[365194752,1749527447611,-460.0,0.00021369,4]
[365194753,1749527447621,-460.0,0.00021369,2]
[365194754,1749527447630,-933.34,0.00021369,4]
[365194755,1749527447639,-1179.61,0.00021369,4]
[365194756,1749527447649,-460.0,0.00021369,4]
[365194757,1749527447658,-903.49,0.00021369,4]
[365194758,1749527447667,-460.0,0.00021369,4]
[365194759,1749527447676,-457.41154303,0.00021369,4]
[365194760,1749527447686,-364.11232645,0.00021369,4]
[365194761,1749527447694,-460.0,0.00021369,4]
[365194762,1749527447704,-4998.55,0.00021369,4]
[365194763,1749527447714,-818.9,0.00021369,4]
[365194764,1749527447724,-460.0,0.00021369,4]
[365194765,1749527447733,-1062.5,0.00021369,4]
[365194766,1749527447742,-181.5865464,0.00021369,4]
[365194767,1749527447751,-460.0,0.00021369,4]
[365194768,1749527447761,-460.0,0.00021369,4]
[365194769,1749527447770,-460.0,0.00021369,4]
[365194770,1749527447780,-420.0,0.00021369,4]
[365194771,1749527447789,-460.0,0.00021369,4]
[365194772,1749527447799,-879.02,0.00021369,4]
[365194773,1749527447808,-1016.63,0.00021369,4]
[365194774,1749527447818,-931.26,0.00021369,4]
[365194775,1749527447828,-460.0,0.00021369,4]
[365194776,1749527447838,-350.82255718,0.00021369,4]
[365194777,1749527447848,-460.0,0.00021369,4]
[365194778,1749527447858,-460.0,0.00021369,4]
[365194779,1749527447867,-460.0,0.00021369,4]
[365194780,1749527447877,-476.58400553,0.00021369,4]
[365194781,1749527447887,-460.0,0.00021369,4]
[365194782,1749527447896,-460.0,0.00021369,4]
[365194783,1749527447905,-460.0,0.00021369,4]
[365194784,1749527447915,-501.57304519,0.0002155,2]
[365194785,1749527448039,-503.83891593,0.0002155,2]
[365194786,1749527448050,-500.0,0.00021587,2]
[365194787,1749527448059,-258.50075216,0.00021594,2]
[365194788,1749527448069,-502.85633705,0.00021594,2]
[365194789,1749527448079,-506.43330927,0.00021609,2]
[365194790,1749527448089,-463.03,0.00021633,3]
[365194791,1749527448098,-437.67835116,0.00021635,2]
[365194792,1749527448108,-500.0,0.00021635,2]
[365194793,1749527448117,-500.0,0.00021635,2]
[365194794,1749527448127,-505.99461232,0.00021635,2]
[365194795,1749527448136,-507.58503409,0.00021642,2]
[365194796,1749527448146,-460.0,0.00021643,4]
[365194797,1749527448155,-460.0,0.00021643,4]
[365194798,1749527448165,-460.0,0.00021643,4]
[365194799,1749527448174,-460.0,0.00021643,4]
[365194800,1749527448184,-460.0,0.00021643,4]
[365194801,1749527448193,-460.0,0.00021643,4]
[365194802,1749527448203,-486.68,0.00021643,4]
[365194803,1749527448212,-460.0,0.00021643,4]
[365194804,1749527448221,-460.0,0.00021643,4]
[365194805,1749527448232,-460.0,0.00021643,4]
[365194806,1749527448241,-460.0,0.00021643,4]
[365194807,1749527448250,-460.0,0.00021643,4]
[365194808,1749527448260,-460.0,0.00021643,4]
[365194809,1749527448269,-460.0,0.00021643,4]
[365194810,1749527448279,-460.0,0.00021643,4]
[365194811,1749527448289,-460.0,0.00021643,4]
[365194812,1749527448301,-460.0,0.00021643,4]
[365194813,1749527448311,-460.0,0.00021643,4]
[365194814,1749527448320,-558.81589324,0.00021643,4]
[365194815,1749527448330,-460.0,0.00021643,4]
[365194816,1749527448339,-933.34,0.00021643,4]
[365194817,1749527448349,-1179.61,0.00021643,4]
[365194818,1749527448359,-460.0,0.00021643,4]
[365194819,1749527448370,-903.49,0.00021643,4]
[365194820,1749527448380,-460.0,0.00021643,4]
[365194821,1749527448390,-460.0,0.00021643,4]
[365194822,1749527448399,-4998.55,0.00021643,4]
[365194823,1749527448409,-818.9,0.00021643,4]
[365194824,1749527448419,-460.0,0.00021643,4]
[365194825,1749527448429,-1062.5,0.00021643,4]
[365194826,1749527448439,-460.0,0.00021643,4]
[365194827,1749527448449,-523.48704835,0.00021643,4]
[365194828,1749527448459,-460.0,0.00021643,4]
[365194829,1749527448469,-460.0,0.00021643,4]
[365194830,1749527448479,-879.02,0.00021643,4]
[365194831,1749527448489,-1016.63,0.00021643,4]
[365194832,1749527448498,-931.26,0.00021643,4]
[365194833,1749527448509,-460.0,0.00021643,4]
[365194834,1749527448519,-460.0,0.00021643,4]
[365194835,1749527448528,-460.0,0.00021643,4]
[365194836,1749527448538,-460.0,0.00021643,4]
[365194837,1749527448547,-523.44,0.00021643,4]
[365194838,1749527448557,-460.0,0.00021643,4]
[365194839,1749527448567,-460.0,0.00021643,4]
[365194840,1749527448576,-501.68515697,0.0002165,2]
[365194841,1749527448586,-1846.30213164,0.0002171,2]
[365194842,1749527448596,-3428.0,0.0002181,7]
[365194843,1749527448608,-500.0,0.0002184,2]
[365194844,1749527448618,-1234.7,0.00021897,3]
[365194845,1749527448627,-617.35,0.00021897,3]
[365194846,1749527448637,-308.68,0.00021897,3]
[365194847,1749527448647,-154.34,0.00021897,3]
[365194848,1749527448656,-968.48684791,0.000219,6]
[365194849,1749527448666,-1646.27,0.00021907,3]
[365194850,1749527448675,-2469.4,0.00021907,3]
[365194851,1749527448684,-842.5625,0.00021907,3]
[365194852,1749527448694,-460.0,0.00021917,4]
[365194853,1749527448703,-460.0,0.00021917,4]
[365194854,1749527448713,-460.0,0.00021917,4]
[365194855,1749527448723,-300.0,0.00021917,4]
[365194856,1749527448732,-460.0,0.00021917,4]
[365194857,1749527448741,-486.68,0.00021917,4]
[365194858,1749527448751,-500.0,0.00021917,4]
[365194859,1749527448761,-500.0,0.00021917,4]
[365194860,1749527448770,-500.0,0.00021917,4]
[365194861,1749527448780,-504.26434367,0.00021917,4]
[365194862,1749527448789,-460.0,0.00021917,4]
[365194863,1749527448799,-460.0,0.00021917,4]
[365194864,1749527448809,-460.0,0.00021917,4]
[365194865,1749527448819,-460.0,0.00021917,4]
[365194866,1749527448828,-451.52200197,0.00021917,4]
[365194867,1749527448839,-460.0,0.00021917,4]
[365194868,1749527448849,-460.0,0.00021917,4]
[365194869,1749527448861,-460.0,0.00021917,4]
[365194870,1749527448871,-460.0,0.00021917,4]
[365194871,1749527448881,-460.0,0.00021917,4]
[365194872,1749527448891,-460.0,0.00021917,4]
[365194873,1749527448901,-933.34,0.00021917,4]
[365194874,1749527448911,-1179.61,0.00021917,4]
[365194875,1749527448922,-460.0,0.00021917,4]
[365194876,1749527448932,-903.49,0.00021917,4]
[365194877,1749527448942,-460.0,0.00021917,4]
[365194878,1749527448952,-460.0,0.00021917,4]
[365194879,1749527448961,-4998.55,0.00021917,4]
[365194880,1749527448971,-818.9,0.00021917,4]
[365194881,1749527448981,-460.0,0.00021917,4]
[365194882,1749527448991,-1062.5,0.00021917,4]
[365194883,1749527449001,-552.55,0.00021917,4]
[365194884,1749527449011,-460.0,0.00021917,4]
[365194885,1749527449021,-460.0,0.00021917,4]
[365194886,1749527449030,-879.02,0.00021917,4]
[365194887,1749527449040,-1016.63,0.00021917,4]
[365194888,1749527449050,-931.26,0.00021917,4]
[365194889,1749527449060,-460.0,0.00021917,4]
[365194890,1749527449070,-460.0,0.00021917,4]
[365194891,1749527449080,-460.0,0.00021917,4]
[365194892,1749527449089,-460.0,0.00021917,4]
[365194893,1749527449099,-324.8328041,0.00021918,7]
[365194894,1749527449112,-2022.39,0.00021989,2]
[365194895,1749527449122,-467.47,0.00022,7]
[365194896,1749527449134,-161.0,0.00022,2]
[365194897,1749527449144,-21388.0,0.00022,2]
[365194898,1749527449154,-968.48684766,0.00022003,6]
[365194899,1749527449164,-3428.0,0.00022044,7]
[365194900,1749527449174,-968.48684766,0.00022107,6]
[365194901,1749527449183,-213.1263252,0.00022141,2]
[365194902,1749527449192,-160.0,0.00022141,2]
[365194903,1749527449202,-160.0,0.00022146,2]
[365194904,1749527449211,-160.0,0.00022146,2]
[365194905,1749527449221,-424.12530924,0.00022146,2]
[365194906,1749527449230,-160.0,0.00022146,2]
[365194907,1749527449240,-160.0,0.00022146,2]
[365194908,1749527449249,-834.9046531,0.00022146,2]
[365194909,1749527449259,-229.6792923,0.00022146,2]
[365194910,1749527449269,-842.5625,0.00022146,2]
[365194911,1749527449278,-160.0,0.00022159,3]
[365194912,1749527449287,-160.0,0.00022161,2]
[365194913,1749527449298,-500.0,0.00022183,2]
[365194914,1749527449309,-501.97576489,0.00022183,2]
[365194915,1749527449319,-460.0,0.00022191,4]
[365194916,1749527449328,-460.0,0.00022191,4]
[365194917,1749527449339,-460.0,0.00022191,4]
[365194918,1749527449348,-482.00718605,0.00022191,4]
[365194919,1749527449361,-486.68,0.00022191,4]
[365194920,1749527449371,-400.66688984,0.00022191,4]
[365194921,1749527449382,-460.0,0.00022191,4]
[365194922,1749527449392,-460.0,0.00022191,4]
[365194923,1749527449402,-460.0,0.00022191,4]
[365194924,1749527449411,-460.0,0.00022191,4]
[365194925,1749527449420,-460.0,0.00022191,4]
[365194926,1749527449430,-460.0,0.00022191,4]
[365194927,1749527449439,-460.0,0.00022191,4]
[365194928,1749527449448,-460.0,0.00022191,4]
[365194929,1749527449458,-933.34,0.00022191,4]
[365194930,1749527449468,-1179.61,0.00022191,4]
[365194931,1749527449477,-460.0,0.00022191,4]
[365194932,1749527449486,-903.49,0.00022191,4]
[365194933,1749527449495,-460.0,0.00022191,4]
[365194934,1749527449504,-460.0,0.00022191,4]
[365194935,1749527449513,-4998.55,0.00022191,4]
[365194936,1749527449522,-818.9,0.00022191,4]
[365194937,1749527449532,-565.95,0.00022191,4]
[365194938,1749527449541,-1062.5,0.00022191,4]
[365194939,1749527449550,-460.0,0.00022191,4]
[365194940,1749527449560,-460.0,0.00022191,4]
[365194941,1749527449570,-879.02,0.00022191,4]
[365194942,1749527449579,-1016.63,0.00022191,4]
[365194943,1749527449588,-931.26,0.00022191,4]
[365194944,1749527449597,-460.0,0.00022191,4]
[365194945,1749527449609,-460.0,0.00022191,4]
[365194946,1749527449618,-460.0,0.00022191,4]
[365194947,1749527449627,-215.0738,0.00022198,2]
[365194948,1749527449637,-968.48684766,0.0002221,6]
[365194949,1749527449646,-1846.30213164,0.00022237,2]
[365194950,1749527449655,-3428.0,0.00022278,7]
[365194951,1749527449664,-842.5625,0.00022278,7]
[365194952,1749527449674,-968.48684766,0.00022314,7]
[365194953,1749527449684,-500.0,0.00022388,2]
[365194954,1749527449693,-460.0,0.00022465,4]
[365194955,1749527449702,-460.0,0.00022465,4]
[365194956,1749527449711,-267.15812344,0.00022465,4]
[365194957,1749527449720,-451.45,0.00022465,2]
[365194958,1749527449730,-486.68,0.00022465,4]
[365194959,1749527449740,-460.0,0.00022465,4]
[365194960,1749527449750,-460.0,0.00022465,4]
[365194961,1749527449759,-460.0,0.00022465,4]
[365194962,1749527449769,-511.88,0.00022465,4]
[365194963,1749527449778,-240.0,0.00022465,4]
[365194964,1749527449788,-460.0,0.00022465,4]
[365194965,1749527449798,-460.0,0.00022465,4]
[365194966,1749527449808,-460.0,0.00022465,4]
[365194967,1749527449818,-933.34,0.00022465,4]
[365194968,1749527449828,-1179.61,0.00022465,4]
[365194969,1749527449837,-460.0,0.00022465,4]
[365194970,1749527449847,-903.49,0.00022465,4]
[365194971,1749527449858,-460.0,0.00022465,4]
[365194972,1749527449867,-531.27,0.00022465,4]
[365194973,1749527449876,-4998.55,0.00022465,4]
[365194974,1749527449886,-818.9,0.00022465,4]
[365194975,1749527449896,-1062.5,0.00022465,4]
[365194976,1749527449905,-460.0,0.00022465,4]
[365194977,1749527449915,-460.0,0.00022465,4]
[365194978,1749527449924,-196.4024726,0.00022465,4]
[365194979,1749527487627,632.28,0.00020116,2]
[365194981,1749527509979,-1264.56,0.00021074,2]
[365194982,1749527510002,-478.55,0.00021095,4]